fUST/lending_fUST_20250804
["ID","MTS","AMOUNT","RATE_DAILY","PERIOD"]
[377282278,1754317846699,-460.0,0.0003315,2]
[377282279,1754317846709,-460.0,0.0003315,2]
[377282280,1754317846719,-460.0,0.0003315,2]
[377282281,1754317846728,-819.79,0.0003315,2]
[377282282,1754317846739,-151.0,0.0003315,14]
[377282283,1754317846748,-151.0,0.0003315,14]
[377282284,1754317846758,-460.0,0.0003315,2]
[377282285,1754317846770,-460.0,0.0003315,2]
[377282286,1754317846779,-460.0,0.0003315,2]
[377282287,1754317846789,-620.13,0.0003315,2]
[377282288,1754317846798,-1648.66,0.0003315,2]
[377282289,1754317846808,-1043.51,0.0003315,2]
[377282290,1754317846818,-460.0,0.0003315,2]
[377282291,1754317846828,-524.25,0.0003315,2]
[377282292,1754317846838,-460.0,0.0003315,2]
[377282293,1754317846847,-460.0,0.0003315,2]
[377282294,1754317846857,-460.0,0.0003315,2]
[377282295,1754317846867,-1471.59,0.0003315,2]
[377282296,1754317846876,-956.66,0.0003315,2]
[377282297,1754317846886,-460.0,0.0003315,2]
[377282298,1754317846896,-460.0,0.0003315,2]
[377282299,1754317846906,-810.19,0.0003315,2]
[377282300,1754317846916,-460.0,0.0003315,2]
[377282301,1754317846925,-3686.36,0.0003315,2]
[377282302,1754317846935,-1741.9,0.0003315,2]
[377282303,1754317846945,-460.0,0.0003315,2]
[377282304,1754317846955,-460.0,0.0003315,2]
[377282305,1754317846965,-460.0,0.0003315,2]
[377282306,1754317846975,-763.97,0.0003315,2]
[377282307,1754317846985,-475.27747607,0.0003315,2]
[377282308,1754317846995,-460.0,0.0003315,2]
[377282309,1754317847005,-460.0,0.0003315,2]
[377282310,1754317847018,-460.0,0.0003315,2]
[377282311,1754317847028,-460.0,0.0003315,2]
[377282312,1754317847037,-460.0,0.0003315,2]
[377282313,1754317847047,-591.63,0.0003315,2]
[377282314,1754317847056,-460.0,0.0003315,2]
[377282315,1754317847066,-460.0,0.0003315,2]
[377282316,1754317847076,-943.75,0.0003315,2]
[377282317,1754317847086,-460.0,0.0003315,2]
[377282318,1754317847096,-460.0,0.0003315,2]
[377282319,1754317847106,-473.16,0.0003315,2]
[377282320,1754317847115,-460.0,0.0003315,2]
[377282321,1754317847125,-460.0,0.0003315,2]
[377282322,1754317847134,-460.0,0.0003315,2]
[377282323,1754317847144,-750.94,0.0003315,2]
[377282324,1754317847154,-1153.07,0.0003315,2]
[377282325,1754317847164,-460.0,0.0003315,2]
[377282326,1754317847173,-460.0,0.0003315,2]
[377282327,1754317847183,-460.0,0.0003315,2]
[377282328,1754317847193,-3518.08,0.0003315,2]
[377282329,1754317847203,-4470.09,0.0003315,2]
[377282330,1754317847213,-320.0147226,0.0003315,2]
[377282331,1754317847223,-460.0,0.0003315,2]
[377282332,1754317847232,-619.74,0.0003315,2]
[377282333,1754317847242,-942.76,0.0003315,2]
[377282334,1754317847252,-460.0,0.0003315,2]
[377282335,1754317847263,-1013.85,0.0003315,2]
[377282336,1754317847272,-460.0,0.0003315,2]
[377282337,1754317847282,-2872.57,0.0003315,2]
[377282338,1754317847292,-460.0,0.0003315,2]
[377282339,1754317847301,-1524.17,0.0003315,2]
[377282340,1754317847311,-460.0,0.0003315,2]
[377282341,1754317847321,-482.26,0.0003315,2]
[377282342,1754317847331,-460.0,0.0003315,2]
[377282343,1754317847341,-460.0,0.0003315,2]
[377282344,1754317847351,-460.0,0.0003315,2]
[377282345,1754317847360,-1181.75,0.0003315,2]
[377282346,1754317847370,-897.6,0.0003315,2]
[377282347,1754317847381,-460.0,0.0003315,2]
[377282348,1754317847390,-769.32,0.0003315,2]
[377282349,1754317847400,-701.41,0.0003315,2]
[377282350,1754317847410,-748.55,0.0003315,2]
[377282351,1754317847420,-460.0,0.0003315,2]
[377282352,1754317847429,-460.0,0.0003315,2]
[377282353,1754317847439,-460.0,0.0003315,2]
[377282354,1754317847449,-1486.19,0.0003315,2]
[377282355,1754317847458,-571.39,0.0003315,2]
[377282356,1754317847469,-467.12078335,0.0003315,2]
[377282357,1754317847482,-460.0,0.0003315,2]
[377282358,1754317847492,-1046.14,0.0003315,2]
[377282359,1754317847502,-460.0,0.0003315,2]
[377282360,1754317847513,-460.0,0.0003315,2]
[377282361,1754317847522,-460.0,0.0003315,2]
[377282362,1754317847532,-460.0,0.0003315,2]
[377282363,1754317847542,-460.0,0.0003315,2]
[377282364,1754317847553,-3442.62,0.0003315,2]
[377282365,1754317847563,-418.09116907,0.0003315,2]
[377282366,1754317847572,-460.0,0.0003315,2]
[377282367,1754317847582,-481.64,0.0003315,2]
[377282368,1754317847591,-460.0,0.0003315,2]
[377282369,1754317847601,-460.0,0.0003315,2]
[377282370,1754317847611,-1515.13,0.0003315,2]
[377282371,1754317847621,-600.47,0.0003315,2]
[377282372,1754317847630,-564.58996918,0.0003315,2]
[377282373,1754317847640,-855.8912456,0.00033151,30]
[377282374,1754317847649,-160.0,0.00033168,7]
[377282375,1754317847658,-325.0,0.00033168,7]
[377282376,1754317847668,-501.43627595,0.00033173,5]
[377282377,1754317847678,-150.0,0.00033173,5]
[377282378,1754317847687,-500.0,0.00033173,5]
[377282379,1754317847698,-150.0,0.00033173,3]
[377282380,1754317847707,-500.0,0.00033173,5]
[377282381,1754317847717,-240.863772,0.00033219,14]
[377282382,1754317847727,-1000.0,0.00033221,5]
[377282383,1754317847737,-502.28091123,0.00033221,5]
[377282384,1754317847747,-1135.74493946,0.00033221,2]
[377282390,1754317847921,-1000.0,0.00033221,5]
[377282392,1754317847934,-1000.0,0.00033221,5]
[377282394,1754317847944,-1000.0,0.00033221,5]
[377282396,1754317847955,-200.0,0.00033237,15]
[377282398,1754317847964,-200.0,0.00033237,15]
[377282400,1754317847974,-200.0,0.00033237,15]
[377282402,1754317847984,-284.0,0.00033269,3]
[377282404,1754317847994,-500.0,0.00033313,2]
[377282406,1754317848004,-422.68,0.0003335,3]
[377282408,1754317848015,-3936.06890528,0.00033383,28]
[377282410,1754317848024,-1000.0,0.00033421,5]
[377282412,1754317848034,-1000.0,0.00033421,5]
[377282414,1754317848043,-250.0,0.00033421,5]
[377282416,1754317848053,-1000.0,0.00033421,2]
[377282418,1754317848062,-1000.0,0.00033421,5]
[377282419,1754317848072,-1000.0,0.00033421,5]
[377282420,1754317848082,-1000.0,0.00033421,5]
[377282421,1754317848091,-1000.0,0.00033421,5]
[377282422,1754317848101,-1000.0,0.00033421,5]
[377282423,1754317848111,-1007.99762055,0.00033421,5]
[377282424,1754317848120,-1742.1074964,0.00033424,2]
[377282425,1754317848130,-152.209555,0.00033424,14]
[377282426,1754317848139,-497.812884,0.00033424,14]
[377282427,1754317848149,-497.812884,0.00033424,14]
[377282428,1754317848159,-151.0,0.00033424,14]
[377282429,1754317848168,-460.0,0.00033424,2]
[377282430,1754317848177,-460.0,0.00033424,2]
[377282431,1754317848186,-460.0,0.00033424,2]
[377282432,1754317848196,-460.0,0.00033424,2]
[377282433,1754317848205,-580.4173415,0.00033424,2]
[377282434,1754317848214,-460.0,0.00033424,2]
[377282435,1754317848223,-460.0,0.00033424,2]
[377282436,1754317848232,-460.0,0.00033424,2]
[377282437,1754317848241,-460.0,0.00033424,2]
[377282438,1754317848250,-283.25653882,0.00033424,2]
[377282439,1754317848260,-460.0,0.00033424,2]
[377282440,1754317848269,-460.0,0.00033424,2]
[377282441,1754317848278,-151.0,0.00033424,14]
[377282442,1754317848288,-323.53319545,0.00033424,2]
[377282443,1754317848297,-460.0,0.00033424,2]
[377282444,1754317848307,-460.0,0.00033424,2]
[377282445,1754317848316,-460.0,0.00033424,2]
[377282446,1754317848326,-460.0,0.00033424,2]
[377282447,1754317848335,-460.0,0.00033424,2]
[377282448,1754317848344,-468.59342855,0.00033424,2]
[377282449,1754317848354,-460.0,0.00033424,2]
[377282450,1754317848363,-460.0,0.00033424,2]
[377282451,1754317848372,-460.0,0.00033424,2]
[377282452,1754317848381,-460.0,0.00033424,2]
[377282453,1754317848391,-460.0,0.00033424,2]
[377282454,1754317848400,-460.0,0.00033424,2]
[377282455,1754317848409,-460.0,0.00033424,2]
[377282456,1754317848419,-151.0,0.00033424,14]
[377282457,1754317848428,-161.039214,0.00033424,14]
[377282458,1754317848437,-161.039214,0.00033424,14]
[377282459,1754317848447,-460.0,0.00033424,2]
[377282460,1754317848456,-460.0,0.00033424,2]
[377282461,1754317848467,-460.0,0.00033424,2]
[377282462,1754317848485,-460.0,0.00033424,2]
[377282463,1754317848496,-460.0,0.00033424,2]
[377282464,1754317848507,-1200.75,0.00033424,2]
[377282465,1754317848520,-460.0,0.00033424,2]
[377282466,1754317848531,-460.0,0.00033424,2]
[377282467,1754317848542,-1039.03,0.00033424,2]
[377282468,1754317848554,-625.09,0.00033424,2]
[377282469,1754317848565,-460.0,0.00033424,2]
[377282470,1754317848575,-460.0,0.00033424,2]
[377282471,1754317848584,-460.0,0.00033424,2]
[377282472,1754317848595,-460.0,0.00033424,2]
[377282473,1754317848605,-460.0,0.00033424,2]
[377282474,1754317848615,-523.35,0.00033424,2]
[377282475,1754317848625,-151.0,0.00033424,14]
[377282476,1754317848636,-1613.78,0.00033424,2]
[377282477,1754317848646,-610.29,0.00033424,2]
[377282478,1754317848656,-460.0,0.00033424,2]
[377282479,1754317848666,-460.0,0.00033424,2]
[377282480,1754317848676,-460.0,0.00033424,2]
[377282481,1754317848686,-460.0,0.00033424,2]
[377282482,1754317848696,-646.71,0.00033424,2]
[377282483,1754317848705,-460.0,0.00033424,2]
[377282484,1754317848715,-3281.17,0.00033424,2]
[377282485,1754317848725,-656.94,0.00033424,2]
[377282486,1754317848734,-460.0,0.00033424,2]
[377282487,1754317848744,-460.0,0.00033424,2]
[377282488,1754317848753,-460.0,0.00033424,2]
[377282489,1754317848767,-460.0,0.00033424,2]
[377282490,1754317848779,-1132.27,0.00033424,2]
[377282491,1754317848790,-460.0,0.00033424,2]
[377282492,1754317848800,-9742.36,0.00033424,2]
[377282493,1754317848810,-807.11999,0.00033424,14]
[377282494,1754317848820,-807.11999,0.00033424,14]
[377282495,1754317848830,-507.46,0.00033424,2]
[377282496,1754317848841,-460.0,0.00033424,2]
[377282497,1754317848851,-460.0,0.00033424,2]
[377282498,1754317848860,-460.0,0.00033424,2]
[377282499,1754317848870,-460.0,0.00033424,2]
[377282500,1754317848880,-460.0,0.00033424,2]
[377282501,1754317848890,-603.75,0.00033424,2]
[377282502,1754317848899,-2636.74449604,0.00033424,2]
[377282503,1754317849349,500.0,0.00032876,120]
[377282527,1754317849705,250.0,0.00030214,2]
[377282532,1754317849738,500.0,0.00030214,2]
[377282536,1754317849771,500.0,0.00030214,2]
[377282540,1754317849802,382.83647783,0.00030214,2]
[377282545,1754317849837,500.0,0.00030214,2]
[377282549,1754317849866,500.0,0.00030214,2]
[377282553,1754317849899,224.13801268,0.00030214,2]
[377282560,1754317849954,500.0,0.00030214,2]
[377282564,1754317849982,500.0,0.00030214,2]
[377282568,1754317850010,500.0,0.00030214,2]
[377282572,1754317850038,597.7814273,0.00030214,2]
[377282576,1754317850066,500.0,0.00030214,2]
[377282580,1754317850098,500.0,0.00030214,2]
[377282584,1754317850127,500.0,0.00030214,2]
[377282588,1754317850154,500.0,0.00030214,2]
[377282592,1754317850181,509.8687109,0.00030214,2]
[377282596,1754317850208,500.0,0.00030214,2]
[377282613,1754317850362,500.0,0.00030214,2]
[377282618,1754317850395,618.96278826,0.00030214,2]
[377282622,1754317850429,500.0,0.00030214,2]
[377282626,1754317850458,500.0,0.00030214,2]
[377282631,1754317850498,500.0,0.00030214,2]
[377282635,1754317850530,500.0,0.00030214,2]
[377282651,1754317850678,-151.0,0.00032646,2]
[377282653,1754317850688,-151.0,0.00032646,2]
[377282655,1754317850698,-27.413144,0.00032646,2]
[377282657,1754317850710,-123.586856,0.00032646,2]
[377282659,1754317850720,-166.89388442,0.00032646,2]
[377282661,1754317850729,-151.0,0.00032646,2]
[377282663,1754317850739,-151.0,0.00032646,2]
[377282665,1754317850748,-151.0,0.00032646,2]
[377282667,1754317850758,-151.0,0.00032646,2]
[377282669,1754317850768,-1027.15,0.00032876,2]
[377282671,1754317850778,-460.0,0.00032876,2]
[377282674,1754317850788,-460.0,0.00032876,2]
[377282676,1754317850798,-460.0,0.00032876,2]
[377282677,1754317850807,-345.66840108,0.00032876,2]
[377282680,1754317850817,-460.0,0.00032876,2]
[377282681,1754317850827,-250.0,0.00032921,2]
[377282683,1754317850836,-1027.15,0.0003315,2]
[377282685,1754317850846,-460.0,0.0003315,2]
[377282687,1754317850855,-460.0,0.0003315,2]
[377282689,1754317850867,-5324.50550396,0.00033424,2]
[377282692,1754317850882,-460.0,0.00033424,2]
[377282694,1754317850891,-460.0,0.00033424,2]
[377282696,1754317850901,-460.0,0.00033424,2]
[377282698,1754317850910,-460.0,0.00033424,2]
[377282699,1754317850920,-460.0,0.00033424,2]
[377282702,1754317850930,-460.0,0.00033424,2]
[377282703,1754317850939,-460.0,0.00033424,2]
[377282705,1754317850948,-1023.13,0.00033424,2]
[377282707,1754317850958,-542.95090851,0.00033424,2]
[377282709,1754317850967,-460.0,0.00033424,2]
[377282711,1754317850976,-151.0,0.00033424,14]
[377282713,1754317850986,-460.0,0.00033424,2]
[377282715,1754317850995,-460.0,0.00033424,2]
[377282717,1754317851004,-1056.31,0.00033424,2]
[377282719,1754317851014,-460.0,0.00033424,2]
[377282721,1754317851024,-465.57,0.00033424,2]
[377282724,1754317851033,-7788.41,0.00033424,2]
[377282726,1754317851043,-460.0,0.00033424,2]
[377282727,1754317851052,-460.0,0.00033424,2]
[377282729,1754317851061,-227.07904584,0.00033424,2]
[377282857,1754317852409,-151.0,0.00032646,2]
[377282858,1754317852419,-422.52095416,0.00033424,2]
[377282859,1754317852428,-460.0,0.00033424,2]
[377282860,1754317852436,-460.0,0.00033424,2]
[377282861,1754317852446,-542.51,0.00033424,2]
[377282862,1754317852455,-460.0,0.00033424,2]
[377282863,1754317852464,-460.0,0.00033424,2]
[377282864,1754317852475,-225.64949273,0.00033424,2]
[377282879,1754317863839,231.67098287,0.00030216,7]
[377282880,1754317864786,500.0,0.00030273,5]
[377282881,1754317873637,154.020377,0.00026362,20]
[377282882,1754317874056,154.020377,0.00026197,20]
[377282883,1754317875046,154.020377,0.00026032,20]
[377282884,1754317882836,500.0,0.00030214,2]
[377282885,1754317882872,500.0,0.00030214,2]
[377282886,1754317882901,500.0,0.00030214,2]
[377282887,1754317882945,500.0,0.00030214,2]
[377282888,1754317898556,181.776,0.00032876,33]
[377282889,1754317900991,312.16666667,0.00028,3]
[377282890,1754317907583,500.0,0.00030214,2]
[377282891,1754317907635,500.0,0.00030214,2]
[377282892,1754317907695,500.0,0.00030214,2]
[377282893,1754317911011,500.0,0.00030214,2]
[377282894,1754317911080,252.449404,0.00030214,2]
[377282895,1754317911105,247.550596,0.00030214,2]
[377282896,1754317911136,417.71710661,0.00030214,2]
[377282897,1754317912689,221.12,0.00027475,15]
[377282898,1754317913036,221.13,0.00027575,15]
[377282899,1754317918725,500.0,0.00030214,2]
[377282900,1754317918766,500.0,0.00030214,2]
[377282901,1754317918801,500.0,0.00030214,2]
[377282902,1754317918844,500.0,0.00030214,2]
[377282903,1754317918884,500.0,0.00030214,2]
[377282904,1754317918926,384.77715931,0.00030214,2]
[377282905,1754317919008,500.0,0.00030214,2]
[377282908,1754317922552,500.0,0.00030214,2]
[377282909,1754317922583,156.3750634,0.00030214,2]
[377282910,1754317922663,500.0,0.00030214,2]
[377282911,1754317922702,433.66470885,0.00030214,2]
[377282912,1754317922731,500.0,0.00030214,2]
[377282913,1754317922760,500.0,0.00030214,2]
[377282914,1754317922789,397.097307,0.00030214,2]
[377282915,1754317928810,500.0,0.00030214,2]
[377282916,1754317928969,500.0,0.00030214,2]
[377282917,1754317929004,500.0,0.00030214,2]
[377282918,1754317929035,500.0,0.00030214,2]
[377282919,1754317929071,262.33185156,0.00030214,2]
[377282920,1754317942110,500.0,0.00030214,2]
[377282921,1754317942162,500.0,0.00030214,2]
[377282922,1754317984099,1538.7778173,0.00031651,120]
[377282923,1754317993930,153.0,0.00032938,30]
[377282924,1754317994122,572.2324606,0.00032603,30]
[377282925,1754318009192,-500.0,0.00030821,5]
[377282926,1754318015695,395.3538371,0.0003153,30]
[377282927,1754318041827,470.2959319,0.0003105,2]
[377282928,1754318051246,4590.4,0.00032876,120]
[377282929,1754318054881,578.5960598,0.00032931,30]
[377282930,1754318099928,199.1007503,0.00030846,2]
[377282931,1754318106516,181.776,0.00026849,14]
[377282935,1754318190155,160.0,0.00032766,120]
[377282936,1754318190603,160.0,0.00032756,120]
[377282937,1754318191045,160.0,0.00032746,120]
[377282938,1754318234152,352.28316715,0.00032087,120]
[377282939,1754318243743,18148.8273178,0.0003,2]
[377282940,1754318243773,5186.36951292,0.0003,2]
[377282943,1754318279106,176.14158357,0.00032087,120]
[377282944,1754318281450,4399.14,0.00032876,120]
[377282945,1754318292156,221.13,0.00027577,15]
[377282946,1754318293042,677.52,0.00031111,2]
[377282947,1754318293630,221.12,0.00027477,15]
[377282948,1754318324054,176.14158358,0.00032087,120]
[377282949,1754318343220,313.53062127,0.0003105,2]
[377282950,1754318400325,3499.2,0.000309,4]
[377282951,1754318448135,155.0,0.00031111,2]
[377282952,1754318472649,154.020377,0.00026362,20]
[377282953,1754318531806,4215.84,0.00032876,120]
[377282954,1754318597298,153.0,0.00032603,30]
[377282955,1754318598779,165.113137,0.00013699,2]
[377282958,1754318601164,446.38,0.00030137,120]
[377282959,1754318637823,350479.84968045,0.00033,30]
[377282960,1754318644564,209.02041418,0.0003105,2]
[377282961,1754318654098,154.020377,0.00025824,20]
[377282962,1754318669829,9043.95556063,0.0003111,2]
[377282963,1754318669852,20000.0,0.0003111,2]
[377282964,1754318669875,20000.0,0.0003111,2]
[377282965,1754318669897,20000.0,0.0003111,2]
[377282966,1754318669920,20000.0,0.0003111,2]
[377282967,1754318669943,20000.0,0.0003111,2]
[377282968,1754318669965,20000.0,0.0003111,2]
[377282969,1754318669987,20000.0,0.0003111,2]
[377282970,1754318670012,20000.0,0.0003111,2]
[377282973,1754318690718,9258.23620727,0.0003031,2]
[377282974,1754318690743,20000.0,0.0003031,2]
[377282975,1754318690767,20000.0,0.0003031,2]
[377282976,1754318690791,20000.0,0.0003031,2]
[377282977,1754318690814,20000.0,0.0003031,2]
[377282978,1754318690836,20000.0,0.0003031,2]
[377282979,1754318690859,20000.0,0.0003031,2]
[377282980,1754318690882,20000.0,0.0003031,2]
[377282981,1754318690904,20000.0,0.0003031,2]
[377282982,1754318690927,20000.0,0.0003031,2]
[377282983,1754318690949,20000.0,0.0003031,2]
[377282984,1754318690971,20000.0,0.0003031,2]
[377282985,1754318708382,21276.08837432,0.0003001,2]
[377282986,1754318749079,1105.43,0.00030137,30]
[377282987,1754318754463,-1000.0,0.0003041,30]
[377282988,1754318798225,18894.57,0.0003031,2]
[377282989,1754318798247,20000.0,0.0003031,2]
[377282990,1754318798408,20000.0,0.0003031,2]
[377282991,1754318798431,20000.0,0.0003031,2]
[377282992,1754318798455,20000.0,0.0003031,2]
[377282993,1754318798479,20000.0,0.0003031,2]
[377282994,1754318798503,20000.0,0.0003031,2]
[377282995,1754318798526,20000.0,0.0003031,2]
[377282996,1754318798549,20000.0,0.0003031,2]
[377282997,1754318798571,20000.0,0.0003031,2]
[377282998,1754318798593,20000.0,0.0003031,2]
[377282999,1754318798617,20000.0,0.0003031,2]
[377283000,1754318798642,20000.0,0.0003031,2]
[377283001,1754318798665,20000.0,0.0003031,2]
[377283002,1754318798688,12744.25042367,0.0003031,2]
[377283003,1754318834769,175.418346,0.00030125,2]
[377283004,1754318885751,-731.0,0.0003041,30]
[377283005,1754318897073,790.27,0.00030137,30]
[377283009,1754318940500,1097.15192861,0.0003031,2]
[377283010,1754318948656,5000.0,0.0003031,2]
[377283011,1754318958079,192.90930172,0.0003031,2]
[377283012,1754318958103,1678.981532,0.0003031,2]
[377283014,1754318966074,5000.0,0.0003031,2]
[377283015,1754318966823,702.47,0.00030137,30]
[377283016,1754318971847,150.0,0.00026081,2]
[377283017,1754318981853,5000.0,0.0003031,2]
[377283018,1754318997562,5000.0,0.0003031,2]
[377283020,1754319015945,2468.548468,0.0003031,2]
[377283021,1754319015972,2531.451532,0.0003031,2]
[377283022,1754319016836,17468.548468,0.00030078,2]
[377283023,1754319016861,7431.451532,0.00030078,2]
[377283088,1754319032022,-179.65122183,0.00030662,2]
[377283090,1754319032032,-141.41007861,0.0003072,2]
[377283097,1754319032095,5000.0,0.0003031,2]
[377283110,1754319032202,-89.66723895,0.0003072,2]
[377283113,1754319032212,-400.0,0.0003082,2]
[377283115,1754319032222,-400.0,0.0003082,2]
[377283117,1754319032232,-241.2716001,0.0003082,2]
[377283119,1754319032243,-158.7283999,0.0003082,2]
[377283121,1754319032253,-400.0,0.0003082,2]
[377283123,1754319032262,-1600.0,0.0003082,2]
[377283125,1754319032272,-400.0,0.0003082,2]
[377283127,1754319032282,-2000.0,0.00030821,5]
[377283129,1754319032291,-2000.0,0.00030821,5]
[377283131,1754319032303,-2000.0,0.00030821,5]
[377283133,1754319032313,-207.64,0.00030821,5]
[377283135,1754319032322,-2000.0,0.00030821,5]
[377283137,1754319032332,-5575.40398796,0.00030821,2]
[377283141,1754319032363,-5333.15511265,0.00030821,2]
[377283313,1754319034761,297.33057618,0.00030137,2]
[377283331,1754319037876,-500.0,0.0003082,2]
[377283332,1754319037886,-500.0,0.0003082,2]
[377283333,1754319037896,-500.0,0.0003082,2]
[377283334,1754319037905,-500.0,0.0003082,2]
[377283335,1754319037915,-500.0,0.0003082,2]
[377283336,1754319037924,-500.0,0.0003082,2]
[377283337,1754319037935,-500.0,0.0003082,2]
[377283338,1754319037945,-500.0,0.0003082,2]
[377283339,1754319037955,-500.0,0.0003082,2]
[377283341,1754319037965,-500.0,0.0003082,2]
[377283343,1754319037975,-500.0,0.0003082,2]
[377283344,1754319037986,-500.0,0.0003082,2]
[377283346,1754319037997,-500.0,0.0003082,2]
[377283347,1754319038006,-500.0,0.0003082,2]
[377283349,1754319038016,-500.0,0.0003082,2]
[377283351,1754319038026,-500.0,0.0003082,2]
[377283354,1754319038036,-500.0,0.0003082,2]
[377283356,1754319038046,-500.0,0.0003082,2]
[377283357,1754319038060,-500.0,0.0003082,2]
[377283359,1754319038070,-500.0,0.0003082,2]
[377283361,1754319038080,-586.62671262,0.0003082,2]
[377283363,1754319038089,-365.33566741,0.0003082,2]
[377283369,1754319038135,-134.66433259,0.0003082,2]
[377283371,1754319038145,-500.0,0.0003082,2]
[377283373,1754319038154,-500.0,0.0003082,2]
[377283375,1754319038165,-500.0,0.0003082,2]
[377283377,1754319038175,-500.0,0.0003082,2]
[377283379,1754319038184,-500.0,0.0003082,2]
[377283381,1754319038194,-391.80251153,0.0003082,2]
[377283383,1754319038203,-500.0,0.0003082,2]
[377283385,1754319038212,-500.0,0.0003082,2]
[377283387,1754319038222,-500.0,0.0003082,2]
[377283389,1754319038231,-500.0,0.0003082,2]
[377283391,1754319038242,-500.0,0.0003082,2]
[377283393,1754319038251,-500.0,0.0003082,2]
[377283395,1754319038261,-500.0,0.0003082,2]
[377283397,1754319038271,-500.0,0.0003082,2]
[377283399,1754319038281,-500.0,0.0003082,2]
[377283401,1754319038291,-500.0,0.0003082,2]
[377283403,1754319038300,-500.0,0.0003082,2]
[377283405,1754319038313,-500.0,0.0003082,2]
[377283407,1754319038324,-500.0,0.0003082,2]
[377283409,1754319038333,-500.0,0.0003082,2]
[377283411,1754319038344,-500.0,0.0003082,2]
[377283413,1754319038353,-500.0,0.0003082,2]
[377283415,1754319038363,-500.0,0.0003082,2]
[377283417,1754319038374,-500.0,0.0003082,2]
[377283419,1754319038383,-500.0,0.0003082,2]
[377283421,1754319038393,-500.0,0.0003082,2]
[377283423,1754319038402,-500.0,0.0003082,2]
[377283425,1754319038412,-500.0,0.0003082,2]
[377283427,1754319038422,-594.29304477,0.0003082,2]
[377283429,1754319038431,-500.0,0.0003082,2]
[377283431,1754319038441,-500.0,0.0003082,2]
[377283433,1754319038451,-500.0,0.0003082,2]
[377283435,1754319038460,-500.0,0.0003082,2]
[377283437,1754319038469,-500.0,0.0003082,2]
[377283439,1754319038479,-500.0,0.0003082,2]
[377283441,1754319038488,-500.0,0.0003082,2]
[377283443,1754319038498,-338.00785695,0.0003082,2]
[377283445,1754319038507,-500.0,0.0003082,2]
[377283447,1754319038517,-500.0,0.0003082,2]
[377283449,1754319038526,-500.0,0.0003082,2]
[377283451,1754319038535,-500.0,0.0003082,2]
[377283453,1754319038545,-500.0,0.0003082,2]
[377283455,1754319038557,-500.0,0.0003082,2]
[377283457,1754319038568,-500.0,0.0003082,2]
[377283459,1754319038579,-500.0,0.0003082,2]
[377283461,1754319038588,-500.0,0.0003082,2]
[377283463,1754319038598,-500.0,0.0003082,2]
[377283465,1754319038608,-500.0,0.0003082,2]
[377283467,1754319038618,-500.0,0.0003082,2]
[377283469,1754319038628,-500.0,0.0003082,2]
[377283471,1754319038638,-500.0,0.0003082,2]